Cogmind - Beta 14 @@@ ROGUE MODE // 2024.11.27 @ 21:28:27 Player: UnderDoug Result: Destroyed by C-17 Slicer with Blade Saw Performance ------------- Evolutions (2) 1000 Regions Visited (3) 600 Robots Destroyed (28) 140 Value Destroyed (800) 800 Prototype IDs (4) 80 Alien Tech Used (0) 0 Bonus (14) 14 TOTAL SCORE: 2634 Bonus ------- High Alert Combat Kills 14 Cogmind --------- Core Integrity 0/550 Matter 204/300 Energy 50/100 System Corruption 3% Temperature Cool (14) Movement Core (50) Location -8/Materials Parts ------- > --- POWER (2) -------- (None) > --- PROPULSION (4) --- (None) > --- UTILITY (3) ------ Visual Processing Unit Signal Interpreter > --- WEAPON (2) ------- (None) > --- INVENTORY (5) ---- Hacking Suite System Shield Peak State ------------ > --- POWER ------------ Ion Engine Heavy Ion Engine > --- PROPULSION ------- Flight Unit Flight Unit VTOL Module > --- UTILITY ---------- Visual Processing Unit ECM Suite > --- WEAPON ----------- Particle Cannon > --- INVENTORY -------- Flight Unit Sensor Array Signal Interpreter Hacking Suite [Rating: 13] Favorites ----------- Power Ion Engine Engine Ion Engine Power Core Light Nuclear Core Propulsion Flight Unit Treads Light Treads Wheel Armored Wheel Hover Unit Hover Unit Flight Unit Flight Unit Utility Visual Processing Unit Device ECM Suite Storage Small Storage Unit Processor Visual Processing Unit Weapon Assault Rifle Energy Gun Small Laser Energy Cannon Particle Cannon Ballistic Gun Assault Rifle Launcher Advanced EMP Blaster Slashing Weapon Blade Saw Build | -11 -10 -9 -8 ------- Run | Yrd Mat Mat Mat Slots Evolved 4 | . . 2 2 Power 1 | . . 1 . Propulsion 2 | . . 1 1 Utility 1 | . . . 1 Weapon . | . . . . Parts Attached 68 | 6 28 20 14 Power 14 | 1 5 3 5 Engine 10 | 1 3 3 3 Core 4 | . 2 . 2 Reactor . | . . . . Propulsion 25 | 2 13 7 3 Treads 2 | 2 . . . Leg . | . . . . Wheel 4 | . 4 . . Hover 6 | . 6 . . Flight 13 | . 3 7 3 Utility 5 | 1 2 1 1 Device 2 | . 1 1 . Storage 1 | 1 . . . Processor 2 | . 1 . 1 Hackware . | . . . . Protection . | . . . . Artifact . | . . . . Weapon 24 | 2 8 9 5 Energy Gun 2 | . 2 . . Energy Cannon 12 | . 2 9 1 Ballistic Gun 8 | 2 4 . 2 Ballistic Cannon . | . . . . Launcher 1 | . . . 1 Special Weapon . | . . . . Impact Weapon . | . . . . Slashing Weapon 1 | . . . 1 Piercing Weapon . | . . . . Special Melee Weapon . | . . . . Unidentified Prototypes 2 | . . 1 1 Corrupted Parts 1 | . . . 1 System Corruption 2 | . . . 2 Parts Lost 29 | . 6 8 15 Power 11 | . 3 2 6 Propulsion 11 | . 2 5 4 Utility 2 | . . 1 1 Weapon 5 | . 1 . 4 Highest Loss Streak 8 | . 4 5 8 To Critical Strikes . | . . . . Average Slot Usage (%) 78 | . 87 76 48 Engine 11 | . 8 20 7 Core 3 | . 4 . 5 Wheel 2 | . 4 . . Hover 8 | . 14 . . Flight 14 | . 7 31 9 Device 4 | . 1 11 3 Storage 6 | . 11 . . Processor 13 | . 13 11 18 Energy Gun 4 | . 7 . . Energy Cannon 1 | . . 3 . Ballistic Gun 7 | . 11 . 3 Peak Build Rating 13 | 6 12 13 13 Average Rating 8 | 3 8 9 8 On Entrance 4 | . 6 6 7 Naked Turns . | . . . . Heaviest Build 18 | 12 14 18 13 Greatest Support 40 | 40 40 12 8 Greatest Overweight (x) 4 | 2 3 1 4 Average Overweight (x) . | . . . . Largest Inventory Capacity 8 | 8 8 5 5 Average Capacity 6 | 7 7 5 5 Most Carried 8 | 6 8 5 3 Average Carried 5 | 2 6 3 2 Final Capacity 8 | 8 5 5 5 Final Carried 5 | 4 5 3 2 Class Distribution -------------------- 93% | Mutant 6% | Scavenger-Mutant Dominant Class ---------------- Mutant | -10/Materials Mutant | -9/Materials Mutant | -8/Materials Resources | -11 -10 -9 -8 ----------- Run | Yrd Mat Mat Mat Matter Collected 759 | 197 387 175 . Remotely . | . . . . Salvage Created 911 | . 433 408 70 Parts 62 | . 29 23 10 Haulers Intercepted . | . . . . Recyclers Shooed . | . . . . Parts Field Recycled . | . . . . Retrieved Matter . | . . . . Parts Self-Destructed . | . . . . Prevented . | . . . . Kills | -11 -10 -9 -8 ------- Run | Yrd Mat Mat Mat Combat Hostiles Destroyed 24 | . 8 12 4 Guns 9 | . 8 . 1 Cannons 13 | . . 12 1 AOE 2 | . . . 2 Classes Destroyed 7 | . 4 2 1 Worker 1 | . 1 . . Builder 1 | . 1 . . Watcher 2 | . 2 . . Swarmer 7 | . . 4 3 Cutter 1 | . . . 1 Grunt 14 | . 8 6 . Sentry 2 | . . 2 . Best Kill Streak 4 | . 4 3 2 Combat Bots Only 3 | . 3 3 2 Max Kills in Single Turn 1 | . 1 1 1 Gunslinging . | . . . . Exploded 1 | . . . 1 Melee . | . . . . Uniques/NPCs Destroyed . | . . . . Combat | -11 -10 -9 -8 -------- Run | Yrd Mat Mat Mat Hostile Shots Fired 338 | . 92 82 164 Missed 113 | . 32 26 55 Damage Taken 2704 | . 775 666 1263 Core 1012 | . 188 255 569 Absorbed by Shields . | . . . . Core Remaining (%) 53 | 100 24 36 . Volleys Fired 93 | . 41 42 10 Largest 2 | . 2 1 2 Hottest 80 | . 80 68 68 Shots Fired 133 | . 78 42 13 Gun 85 | . 77 . 8 Cannon 44 | . 1 42 1 Launcher 4 | . . . 4 Special . | . . . . Kinetic 36 | . 28 . 8 Thermal 93 | . 50 42 1 Explosive . | . . . . Electromagnetic 4 | . . . 4 Robot Hit Streak 10 | . 10 5 6 Robot Miss Streak 3 | . 2 3 2 Penetration Max . | . . . . Secondary Targets 1 | . 1 . . Max Gunslinging Chain 1 | . 1 . . Shots Hit Robots 84 | . 50 27 7 Core Hits 43 | . 24 13 6 Critical Kills . | . . . . Critical Parts Destroyed 1 | . 1 . . Critical Strikes 1 | . 1 . . Destroy 1 | . 1 . . Melee Attacks 1 | . . . 1 Impact . | . . . . Slashing 1 | . . . 1 Piercing . | . . . . Sneak Attacks . | . . . . Combat Hostiles . | . . . . Follow-up Attacks . | . . . . Damage Inflicted 1611 | . 690 597 324 Guns 667 | . 617 . 50 Cannons 637 | . 20 597 20 Explosions 300 | . 53 . 247 Melee . | . . . . Ramming 7 | . . . 7 Kinetic 315 | . 265 . 50 Thermal 1069 | . 425 597 47 Explosive . | . . . . Electromagnetic 220 | . . . 220 Impact . | . . . . Slashing . | . . . . Piercing . | . . . . Highest Corruption 3 | . . . 3 Average Corruption 1 | . . . 1 Corruption Purged . | . . . . Corruption Blocked . | . . . . Overload Shots . | . . . . Overflow Damage 14 | . 13 1 . Projectiles 1 | . . 1 . Explosions 13 | . 13 . . Melee . | . . . . Knockbacks . | . . . . Impact . | . . . . Kinetic . | . . . . Secondary . | . . . . Self-Inflicted Damage 28 | . . . 28 Shots 1 | . . . 1 Rammed 2 | . . . 2 Targets Rammed 2 | . . . 2 Kicked . | . . . . Crushed . | . . . . Highest Temperature 398 | . 398 354 33 Average Temperature 147 | . 179 137 12 Received Heat Transfer 1038 | . 432 264 342 Effects 3 | . 2 1 . Energy Bleed 3 | . 2 1 . Siege Activations . | . . . . Robots Corrupted . | . . . . Combat Hostiles . | . . . . Parts Fried . | . . . . Impact Corruptions . | . . . . Robots Melted . | . . . . Combat Hostiles . | . . . . Parts Melted 2 | . . 2 . Heat Transferred 1985 | . 862 1036 87 Parts Sabotaged . | . . . . Parts Stolen . | . . . . Parts Stripped . | . . . . Power Chain Reactions 3 | . . . 3 Alert | -11 -10 -9 -8 ------- Run | Yrd Mat Mat Mat Peak Influence 464 | . 270 464 434 Initial 202 | . . 29 202 Average 161 | . 120 205 283 Maximum Alert Level 2 | . 1 2 2 Low Security (%) 65 | 100 87 50 4 Level 1 31 | . 12 43 87 Level 2 2 | . . 6 7 Level 3 . | . . . . Level 4 . | . . . . Level 5 . | . . . . High Security . | . . . . Max Security . | . . . . Squads Dispatched 9 | . 4 2 3 Investigation 4 | . 3 1 . Extermination . | . . . . Reinforcement 4 | . 1 1 2 Assault . | . . . . Garrison 1 | . . . 1 Intercept . | . . . . Searches Triggered . | . . . . Construction Impeded . | . . . . Haulers Reinforced . | . . . . Active Scanning Responses . | . . . . Cargo Convoy Interrupts . | . . . . Stealth | -11 -10 -9 -8 --------- Run | Yrd Mat Mat Mat Distress Signals 3 | . 1 . 2 Communications Jammed . | . . . . Distress Signals . | . . . . Times Spotted 70 | . 25 21 24 Peak Tracking Total 15 | . 4 8 15 Tactical Retreats 14 | . 5 5 4 Traps | -11 -10 -9 -8 ------- Run | Yrd Mat Mat Mat Traps Triggered 3 | . 2 1 . Indirectly . | . . . . Trap Hack Attempts . | . . . . Triggered . | . . . . Disarmed . | . . . . Reprogrammed . | . . . . Reused . | . . . . Traps Extracted . | . . . . Installed . | . . . . Triggered . | . . . . Machines | -11 -10 -9 -8 ---------- Run | Yrd Mat Mat Mat Machines Disabled 7 | . 5 1 1 Max in Single Turn 5 | . 5 1 1 Machines Repaired . | . . . . Machines Dismantled . | . . . . Machines Sabotaged . | . . . . Overloaded Fab Kills . | . . . . Hacking | -11 -10 -9 -8 --------- Run | Yrd Mat Mat Mat Machines Accessed 6 | . 4 2 . Terminals 4 | . 3 1 . Fabricators . | . . . . Repair Stations 1 | . 1 . . Recycling Units 1 | . . 1 . Scanalyzers . | . . . . Garrison Access . | . . . . Total Hacks 25 | . 20 5 . Successful 14 | . 10 4 . Failed 10 | . 9 1 . Catastrophic 2 | . 1 1 . Database Lockouts 1 | . 1 . . Manual . | . . . . Terminals 19 | . 17 2 . Fabricators . | . . . . Repair Stations 3 | . 3 . . Recycling Units 3 | . . 3 . Scanalyzers . | . . . . Garrison Access . | . . . . Terminal Hacks 11 | . 9 2 . Record 8 | . 6 2 . Robot Analysis 1 | . 1 . . Prototype ID Bank 1 | . 1 . . Alert Level 1 | . 1 . . Fabricator Hacks . | . . . . Repair Station Hacks 1 | . 1 . . Scan Component 1 | . 1 . . Recycling Unit Hacks 2 | . . 2 . Report Inventory 1 | . . 1 . Retrieve Components 1 | . . 1 . Scanalyzer . | . . . . Garrison Access Hacks . | . . . . Unauthorized Hacks . | . . . . Terminals . | . . . . Fabricators . | . . . . Repair Stations . | . . . . Recycling Units . | . . . . Scanalyzers . | . . . . Garrison Access . | . . . . Data Cores Recovered . | . . . . Used . | . . . . Hacking Detections 6 | . 4 2 . Full Trace Events 5 | . 4 1 . Feedback Events . | . . . . Feedback Blocked . | . . . . Robot Schematics Acquired . | . . . . Robots Built . | . . . . Authchips . | . . . . Time . | . . . . Total Robot Build Rating . | . . . . Part Schematics Acquired . | . . . . Parts Built . | . . . . Authchips . | . . . . Time . | . . . . Total Part Build Rating . | . . . . Parts Repaired . | . . . . Time . | . . . . Parts Recycled . | . . . . Recycled Matter . | . . . . Retrieved Matter . | . . . . Retrieved Components 3 | . . 3 . Parts Scanalyzed . | . . . . Part Schematics Acquired . | . . . . Parts Damaged . | . . . . Bothacking | -11 -10 -9 -8 ------------ Run | Yrd Mat Mat Mat Used RIF Installer . | . . . . Robots Hacked . | . . . . Non-combat . | . . . . Combat . | . . . . Robot Hacks Applied . | . . . . Relay Couplers Released . | . . . . Fabnet Peak Effective % . | . . . . Robots Rewired . | . . . . Allies Hacked . | . . . . Hacks Repelled . | . . . . Allies | -11 -10 -9 -8 -------- Run | Yrd Mat Mat Mat Total Allies . | . . . . Largest Group . | . . . . Highest-Rated Group . | . . . . Highest-Rated Ally . | . . . . Total Orders . | . . . . Ally Attacks . | . . . . Total Damage . | . . . . Kills . | . . . . Allies Corrupted . | . . . . Allies Melted . | . . . . Intel | -11 -10 -9 -8 ------- Run | Yrd Mat Mat Mat Robot Analysis Total 1 | . 1 . . Derelict Logs Recovered . | . . . . Drone Launches . | . . . . Drone Recoveries . | . . . . Exploration | -11 -10 -9 -8 ------------- Run | Yrd Mat Mat Mat Turns Passed 1518 | 73 835 371 239 Spaces Moved 1386 | 41 880 261 204 Core 76 | 22 1 . 53 Treads 31 | 19 12 . . Legs . | . . . . Wheels 76 | . 76 . . Hover 343 | . 343 . . Flight 860 | . 448 261 151 Fastest Speed 34 | 50 37 34 37 Average Speed 76 | 142 65 93 91 Slowest Speed 280 | 160 200 117 280 Overloaded Moves . | . . . . Propulsion Burnouts . | . . . . Robots Hopped . | . . . . Cave-ins Triggered . | . . . . Exploration Rate (%) 39 | 4 97 27 28 Regions Visited 3 Branch Regions . Pre-discovered Areas . | . . . . Known Exits Taken . | . . . . Unknown Exits Taken 3 | 1 1 1 . Scrap Searched . | . . . . Spaces Dug . | . . . . Terrain Destroyed 15 | . 15 . . Melee . | . . . . Projectile . | . . . . AOE 15 | . 15 . . Terrain Rammed . | . . . . Walls Destroyed . | . . . . Machines Disabled . | . . . . Actions | -11 -10 -9 -8 --------- Run | Yrd Mat Mat Mat Total 1710 | 56 1065 348 241 Wait 80 | . 68 10 2 Move 1383 | 40 879 260 204 Hop . | . . . . Pick Up 48 | 10 26 5 7 Fast Attach 16 | . 7 3 6 Attach 46 | 6 16 16 8 Detach 11 | . 2 9 . Swap 6 | . 5 1 . Drop 24 | . 21 2 1 Fire 93 | . 41 42 10 Melee 1 | . . . 1 Ram 2 | . . . 2 Kick . | . . . . Crush . | . . . . Escape Stasis . | . . . . Rewire . | . . . . Trap . | . . . . Miscellaneous . | . . . . Route ------- -11/Scrapyard -10/Materials (discovered 4 exits: *Mat x3 / [*Min]) -9/Materials -8/Materials History --------- Turn | Location | Event 6 | -11/Scrapyard | Discovered new exit (range 16) 74 | -11/Scrapyard | Entered Materials 181 | -10/Materials | Discovered new exit (range 18) 309 | -10/Materials | Central database locked down 317 | -10/Materials | Build established: Mutant 409 | -10/Materials | Discovered new exit (range 7) 507 | -10/Materials | Lost 4 parts (2p2n) 661 | -10/Materials | Core integrity fell below 50% 826 | -10/Materials | Discovered new exit (range 10) 901 | -10/Materials | Discovered new exit (range 17) 909 | -10/Materials | Entered another Materials area 909 | -9/Materials | Evolved 2 slots: Power x1, Propulsion x1 1235 | -9/Materials | Lost 5 parts (1p3n1u) 1262 | -9/Materials | Core integrity fell below 50% 1271 | -9/Materials | Discovered new exit (range 12) 1280 | -9/Materials | Entered another Materials area 1280 | -8/Materials | Evolved 2 slots: Propulsion x1, Utility x1 1431 | -8/Materials | Lost 8 parts (3p3n1u1w) 1467 | -8/Materials | Core integrity fell below 50% 1503 | -8/Materials | Garrison activated, responded to threat 1511 | -8/Materials | Core integrity fell below 20% 1519 | -8/Materials | Destroyed by C-17 Slicer with Blade Saw Last Messages --------------- Door malfunctions. Y-45 Defender calls for garrison reinforcements. ALERT: Activating Garrison Access M001. S-10 Pest misfires. Imp. Ion Engine destroyed. Emergency Access malfunctions. C-17 Slicer destroyed. Acquired Corrupted Surge Thruster. Integrated Corrupted Surge Thruster (+2). The Surge Thruster is "overloadable", activating it again increases its output for additional resource costs, and may damage the unit. See Burnout stat context help for more info. Acquired Blade Saw. Adv. EMP Blaster destroyed. Surge Thruster severed. Blade Saw destroyed. Critical hit (Burn: +37). Slammed into C-17 Slicer. S-10 Pest IFF system glitched. Map ----- +----------------------------------------------------+ | ??????# """ #????# """ !! #??????? | | ??????# """ ###### """ #??????? | | ??????# """ / ## """ #??????? | | ??????# ### ## #??????? | | ??????# """ #?# ## #??????? | | ?##???# """ #?# ######### #??????? | | ?# ?# "" #?# #???????# " #??????? | | ?+ # % ### ###?????# " #??????? | | ?# " # ####### " #??????? | | ?# ! # # "%" #????? | | ?## ??####+#### "T" #????? | | ??????# #?# """?????????? | | ??????# " #?# ###############+####?????????? | | ??????# T #?#######????????????????????????????? | | ??????# " #????#####???????????????????????????? | | ?????## [ #????# ???????????????????????????? | | ??????+ ! ###### ???????????????????????????? | | ??+ ??# # # "??????????????????????????? | | ??# ?#! # # "??????????????????????????? | | ??# ####/### + ??????????????????????????? | | ??# # ??????????????????????????? | | ??# ## ?????????????????????????? | | ??# !! #?? ?????????????????????????? | | ??# """ !! #???? ?????????????????????????? | | ??# """ ! #######/#####????????????????????? | | ?## """ # @ #????????????????????? | | ?+ # %c #????????????????????? | | ?# Yr ! #????????????????????? | | ?# """ r # #?????????????H??????? | | ?# """ # #????????????????????? | | ?# """ # s #????????????????????? | | ?# Yg #????????????????????? | | ?# #############????????????????????? | | ?# ####+##????????????????????????????????? | | ? ???????????????????????????????????????? | | ???????????????????????????????????????? | | ##########???????????????????????????????????????? | | ?????????????????????????????????????????????????? | | ?????????????????????????????????????????????????? | | ?????????????????????????????????????????????????? | | ?????????????????????????????????????????????????? | | | | | | | | | | | | | | | | | | | +----------------------------------------------------+ Best States ------------- Heat Dissipation 31 Energy Generation 21 Energy Capacity 430 Matter Stores 300 Matter Capacity 300 Sight Range 18 Robot Scan Range 14 Terrain Scan Density 10 ECM Strength 1 Evasion (%) 63 Recoil Reduction 2 Item Schematics ----------------- None Robot Schematics ------------------ None Fabricated ------------ Nothing Alien Tech Used ----------------- None Achievements -------------- None Challenges ------------ None Game ------ Seed PulseQuantumStreamer Manual? 0 Play Time 00:38:27 Cumulative 4.1 hours Start 2024.11.27 @ 20:48:53 End 2024.11.27 @ 21:28:27 Sessions 1 Manual Loads 0 Difficulty Rogue Special Mode None Game No. 5 Rogue 5 Adventurer 0 Explorer 0 Win Type - Total 0 Types 0/0/0/0/0/0/0/0/0 Lore% 5 Gallery% 7 Achievement% 9 Wizard Run 0 Options --------- Layout 1 ASCII 0 Keyboard 0 Movement Numpad Keybinds 0 Fullscreen 2 Font 24/Tamsyn Map View 50x35 Zoom Use 0% Tactical HUD 0 Map Filters NONE Filters NONE Steam 0 RUN: 1a7cc13f-d611-4889-9f7c-e0074a200dc7